lending/lending_fUSD_20251107
["ID","MTS","AMOUNT","RATE_DAILY","PERIOD"]
[393360552,1762526689941,-628.08759491,0.0003288,30]
[393360553,1762526689972,-628.08759491,0.0003288,30]
[393360554,1762526690003,-628.08759491,0.0003288,30]
[393360555,1762526690032,-628.08759491,0.0003288,30]
[393360556,1762526690062,-628.08759491,0.0003288,30]
[393360557,1762526690094,-628.08759491,0.0003288,30]
[393360558,1762526690124,-628.08,0.0003288,30]
[393360559,1762526690156,-20000.0,0.000335,30]
[393360560,1762526690188,-367.1,0.000337,30]
[393360561,1762526690220,-200.0,0.00034,120]
[393360562,1762526690251,-2000.0,0.00034297,120]
[393360563,1762526690283,-9999.999999,0.000345,30]
[393360564,1762526690316,-367.1,0.000348,30]
[393360565,1762526690533,-500.0,0.00034837,120]
[393360566,1762526690565,-500.0,0.00034837,120]
[393360567,1762526690598,-500.0,0.00034837,120]
[393360568,1762526690631,-500.0,0.00034837,120]
[393360569,1762526690663,-500.0,0.00034837,120]
[393360570,1762526690700,-500.0,0.00034837,120]
[393360571,1762526690728,-500.0,0.00034837,120]
[393360572,1762526690757,-500.0,0.00034837,120]
[393360573,1762526690786,-500.0,0.00034837,120]
[393360574,1762526690814,-500.0,0.00034837,120]
[393360575,1762526690842,-500.0,0.00034837,120]
[393360576,1762526690874,-500.0,0.00034837,120]
[393360577,1762526690902,-500.0,0.00034837,120]
[393360578,1762526690934,-500.0,0.00034837,120]
[393360579,1762526690963,-500.0,0.00034837,120]
[393360580,1762526690991,-500.0,0.00034837,120]
[393360581,1762526691020,-1903.21,0.00034867,30]
[393360582,1762526691050,-211.0,0.0003488,30]
[393360583,1762526691080,-1158.78187974,0.00034965,30]
[393360584,1762526691113,-500.0,0.00035005,30]
[393360585,1762526691145,-1400.0,0.00035083,30]
[393360586,1762526691176,-500.0,0.00035145,30]
[393360587,1762526691213,-500.0,0.0003515,30]
[393360588,1762526691248,-500.0,0.00035151,30]
[393360589,1762526691283,-800.0,0.00035184,30]
[393360590,1762526691318,-169.89718077,0.00035205,30]
[393360591,1762526691351,-1400.0,0.00035217,30]
[393360592,1762526691384,-500.0,0.00035236,30]
[393360593,1762526691416,-1400.0,0.00035245,30]
[393360594,1762526691454,-500.0,0.00035267,30]
[393360595,1762526691491,-500.0,0.00035355,30]
[393360596,1762526691525,-1400.0,0.00035445,30]
[393360597,1762526691559,-800.0,0.00035479,30]
[393360598,1762526691592,-1400.0,0.00035488,30]
[393360599,1762526691623,-10000.0,0.000355,60]
[393360600,1762526691654,-500.0,0.00035511,30]
[393360601,1762526691687,-500.0,0.00035529,30]
[393360602,1762526691718,-500.0,0.00035543,30]
[393360603,1762526691750,-999.0,0.00035616,120]
[393360604,1762526691781,-151.0,0.00035616,31]
[393360605,1762526691812,-151.0,0.00035616,31]
[393360606,1762526691844,-151.425176,0.00035616,31]
[393360607,1762526691877,-500.0,0.00035617,30]
[393360608,1762526691908,-1400.0,0.00035654,30]
[393360609,1762526691938,-500.0,0.00035671,30]
[393360610,1762526691966,-198.5995136,0.00035683,30]
[393360611,1762526691994,-500.0,0.00035788,30]
[393360612,1762526692023,-1400.0,0.00035801,30]
[393360613,1762526692056,-500.0,0.00035804,30]
[393360614,1762526692088,-500.0,0.00035804,30]
[393360615,1762526692119,-500.0,0.00035811,30]
[393360616,1762526692151,-500.0,0.00035841,30]
[393360617,1762526692189,-500.0,0.00035856,30]
[393360618,1762526692224,-500.0,0.00035856,30]
[393360619,1762526692258,-500.0,0.00035902,30]
[393360620,1762526692291,-500.0,0.00035912,30]
[393360621,1762526692324,-500.0,0.00035913,30]
[393360622,1762526692358,-500.0,0.0003593,30]
[393360623,1762526692391,-500.0,0.00035933,30]
[393360624,1762526692423,-1400.0,0.00035984,30]
[393360625,1762526692459,-505.76770933,0.00036,120]
[393360626,1762526692491,-367.1,0.00036,30]
[393360627,1762526692522,-200.0,0.00036,120]
[393360628,1762526692551,-162.0,0.00036,30]
[393360629,1762526692581,-500.0,0.00036014,30]
[393360630,1762526692611,-500.0,0.00036074,30]
[393360631,1762526692642,-500.0,0.0003608,30]
[393360632,1762526692670,-500.0,0.00036222,30]
[393360633,1762526692705,-800.0,0.00036224,30]
[393360634,1762526692736,-500.0,0.00036299,30]
[393360635,1762526692767,-500.0,0.00036343,30]
[393360636,1762526692796,-500.0,0.00036407,30]
[393360637,1762526692824,-500.0,0.00036424,30]
[393360638,1762526692854,-500.0,0.00036435,30]
[393360639,1762526692887,-500.0,0.00036459,30]
[393360640,1762526692919,-800.0,0.00036461,30]
[393360641,1762526692958,-500.0,0.00036465,30]
[393360642,1762526692990,-10000.0,0.000365,40]
[393360643,1762526693020,-9749.81636475,0.000365,120]
[393360644,1762526693051,-500.0,0.00036523,30]
[393360645,1762526693085,-1400.0,0.00036529,30]
[393360646,1762526693116,-500.0,0.0003654,30]
[393360647,1762526693146,-800.0,0.00036552,30]
[393360648,1762526693176,-500.0,0.00036555,30]
[393360649,1762526693217,-1400.0,0.00036624,30]
[393360650,1762526693250,-1400.0,0.00036665,30]
[393360651,1762526693283,-156.806367,0.00036672,30]
[393360652,1762526693316,-500.0,0.00036716,30]
[393360653,1762526693351,-800.0,0.0003676,30]
[393360654,1762526693386,-500.0,0.00036761,30]
[393360655,1762526693420,-500.0,0.00036781,30]
[393360656,1762526693460,-500.0,0.00036787,30]
[393360657,1762526693494,-800.0,0.00036805,30]
[393360658,1762526693527,-500.0,0.00036826,30]
[393360659,1762526693561,-500.0,0.00036852,30]
[393360660,1762526693594,-211.0,0.0003689,30]
[393360661,1762526693628,-1400.0,0.00036904,30]
[393360662,1762526693663,-500.0,0.00036912,30]
[393360663,1762526693698,-1400.0,0.00036913,30]
[393360664,1762526693733,-500.0,0.00036979,30]
[393360665,1762526693767,-200.0,0.00037,120]
[393360666,1762526693802,-500.0,0.0003702,30]
[393360667,1762526693840,-500.0,0.0003708,30]
[393360668,1762526693874,-500.0,0.00037084,30]
[393360669,1762526694053,-500.0,0.00037089,30]
[393360670,1762526694086,-500.7,0.00037107,30]
[393360671,1762526694120,-500.0,0.00037132,30]
[393360672,1762526694154,-500.0,0.0003715,30]
[393360673,1762526694192,-800.0,0.00037156,30]
[393360674,1762526694228,-800.0,0.00037159,30]
[393360675,1762526694264,-500.0,0.00037159,30]
[393360676,1762526694300,-500.0,0.00037172,30]
[393360677,1762526694335,-2000.0,0.00037173,120]
[393360678,1762526694371,-500.0,0.00037173,120]
[393360679,1762526694405,-500.0,0.00037181,30]
[393360680,1762526694440,-1400.0,0.00037186,30]
[393360681,1762526694473,-500.0,0.00037197,30]
[393360682,1762526694507,-367.1,0.000372,30]
[393360683,1762526694541,-1146.3827619,0.000372,120]
[393360684,1762526694575,-1146.3827619,0.000372,120]
[393360685,1762526694608,-1146.3827619,0.000372,120]
[393360686,1762526694642,-1146.3827619,0.000372,120]
[393360687,1762526694674,-1146.3827619,0.000372,120]
[393360688,1762526694710,-500.0,0.0003723,30]
[393360689,1762526694741,-161.21430742,0.00037233,30]
[393360690,1762526694772,-500.0,0.00037269,30]
[393360691,1762526694803,-1400.0,0.00037332,30]
[393360692,1762526694840,-1400.0,0.00037345,30]
[393360693,1762526694872,-1400.0,0.00037363,30]
[393360694,1762526694904,-500.0,0.00037392,30]
[393360695,1762526694940,-800.0,0.00037393,30]
[393360696,1762526694973,-1400.0,0.00037445,30]
[393360697,1762526695005,-500.0,0.00037534,30]
[393360698,1762526695035,-500.0,0.00037591,30]
[393360699,1762526695064,-1400.0,0.00037603,30]
[393360700,1762526695094,-1400.0,0.00037619,30]
[393360701,1762526695124,-500.0,0.0003762,30]
[393360702,1762526695154,-161.21430742,0.00037644,30]
[393360703,1762526695188,-800.0,0.00037662,30]
[393360704,1762526695219,-500.0,0.00037668,30]
[393360705,1762526695251,-500.0,0.00037677,30]
[393360706,1762526695282,-500.0,0.00037715,120]
[393360707,1762526695313,-500.0,0.00037715,120]
[393360708,1762526695344,-500.0,0.00037715,120]
[393360709,1762526695375,-500.0,0.00037715,120]
[393360710,1762526695406,-500.0,0.00037715,120]
[393360711,1762526695440,-500.0,0.00037715,120]
[393360712,1762526695473,-231.0,0.00037715,120]
[393360713,1762526695511,-500.0,0.00037786,30]
[393360714,1762526695545,-500.0,0.00037817,30]
[393360715,1762526695578,-500.0,0.00037869,30]
[393360716,1762526695609,-2000.0,0.00037898,120]
[393360717,1762526695641,-500.0,0.00037905,30]
[393360718,1762526695673,-800.0,0.00037907,30]
[393360719,1762526695712,-1400.0,0.00037977,30]
[393360720,1762526695743,-919.3820951,0.00037985,120]
[393360721,1762526695774,-500.0,0.00037995,30]
[393360722,1762526695805,-162.0,0.00038,30]
[393360723,1762526695836,-606.29532245,0.00038,30]
[393360724,1762526695867,-500.71596631,0.00038,120]
[393360725,1762526695897,-403.37540969,0.00038,90]
[393360726,1762526695928,-2850.35311745,0.00038,120]
[393360727,1762526695962,-3275.18211507,0.00038,120]
[393360728,1762526695994,-1000.0,0.00038,30]
[393360729,1762526696024,-5000.0,0.00038,30]
[393360730,1762526696054,-6764.42821821,0.00038,30]
[393360731,1762526696083,-5000.0,0.00038,120]
[393360732,1762526696112,-380.0,0.00038,30]
[393360733,1762526696144,-500.0,0.00038033,30]
[393360734,1762526696178,-500.0,0.00038042,30]
[393360735,1762526696217,-161.21430742,0.00038055,30]
[393360736,1762526696252,-300.0,0.00038076,88]
[393360737,1762526696285,-505.4584771,0.000381,33]
[393360738,1762526696316,-500.0,0.00038102,30]
[393360739,1762526696350,-500.0,0.00038107,30]
[393360740,1762526696383,-500.0,0.00038116,30]
[393360741,1762526696415,-500.0,0.00038121,30]
[393360742,1762526696454,-202.50040636,0.00038126,30]
[393360743,1762526696489,-500.0,0.00038139,30]
[393360744,1762526696523,-500.0,0.00038165,30]
[393360745,1762526696556,-500.0,0.00038176,30]
[393360746,1762526696591,-500.5298232,0.00038223,30]
[393360747,1762526696623,-500.0,0.00038229,30]
[393360748,1762526696655,-800.0,0.00038247,30]
[393360749,1762526696688,-500.0,0.00038254,30]
[393360750,1762526696719,-500.0,0.00038295,30]
[393360751,1762526696748,-501.63005121,0.000383,30]
[393360752,1762526696779,-191.23427542,0.000383,120]
[393360753,1762526696808,-185.0557086,0.000383,120]
[393360754,1762526696838,-170.04807058,0.000383,120]
[393360755,1762526696866,-269.22624179,0.000383,120]
[393360756,1762526696896,-1775.3547109,0.000383,120]
[393360757,1762526696925,-203.12782018,0.000383,120]
[393360758,1762526696958,-380.0,0.00038333,30]
[393360759,1762526696987,-800.0,0.00038345,30]
[393360760,1762526697019,-999.0,0.00038356,120]
[393360761,1762526697050,-500.0,0.00038398,30]
[393360762,1762526697081,-500.0,0.000384,30]
[393360763,1762526697114,-500.0,0.00038408,30]
[393360764,1762526697146,-722.9,0.00038459,30]
[393360765,1762526697176,-722.9,0.00038459,30]
[393360766,1762526697212,-722.9,0.00038459,30]
[393360767,1762526697243,-722.9,0.00038459,30]
[393360768,1762526697275,-500.0,0.00038499,30]
[393360769,1762526697307,-3848.18,0.000385,120]
[393360770,1762526697338,-500.0,0.00038516,30]
[393360771,1762526697372,-500.0,0.00038523,30]
[393360772,1762526697542,-1400.0,0.00038527,30]
[393360773,1762526697578,-500.0,0.00038543,30]
[393360774,1762526697613,-204.67396114,0.00038553,120]
[393360775,1762526697647,-800.0,0.00038579,30]
[393360776,1762526697679,-500.0,0.00038606,120]
[393360777,1762526697717,-2000.0,0.00038624,120]
[393360778,1762526697748,-564.85530141,0.0003863,120]
[393360779,1762526697779,-500.0,0.0003866,30]
[393360780,1762526697811,-196.90978,0.000387,30]
[393360781,1762526697843,-728.70533751,0.000387,120]
[393360782,1762526697872,-551.60627282,0.000387,30]
[393360783,1762526697902,-3000.0,0.000387,30]
[393360784,1762526697933,-1892.78806765,0.000387,120]
[393360785,1762526697964,-463.74,0.000387,60]
[393360786,1762526697993,-50814.88079094,0.000387,30]
[393360787,1762526698023,-500.0,0.00038701,30]
[393360788,1762526698053,-314.64,0.00038705,30]
[393360789,1762526698089,-1000.0,0.00038706,30]
[393360790,1762526698132,-1400.0,0.00038712,30]
[393360791,1762526698163,-504.92775048,0.00038729,30]
[393360792,1762526698194,-1052.1215177,0.0003873,30]
[393360793,1762526698226,-219.88,0.0003873,30]
[393360794,1762526698258,-722.9,0.00038733,30]
[393360795,1762526698290,-722.9,0.00038733,30]
[393360796,1762526698321,-1110.0,0.0003874,30]
[393360797,1762526698353,-1110.0,0.0003874,30]
[393360798,1762526698385,-1001.0,0.0003874,30]
[393360799,1762526698418,-1001.0,0.0003874,30]
[393360800,1762526698457,-1001.0,0.0003874,30]
[393360801,1762526698494,-1400.0,0.00038743,30]
[393360802,1762526698530,-1500.0,0.0003875,30]
[393360803,1762526698563,-1500.0,0.0003875,30]
[393360804,1762526698596,-1500.0,0.0003875,30]
[393360805,1762526698629,-1500.0,0.0003875,30]
[393360806,1762526698660,-1500.0,0.0003875,30]
[393360807,1762526698695,-1500.0,0.0003875,30]
[393360808,1762526698725,-1500.0,0.0003875,30]
[393360809,1762526698756,-1500.0,0.0003875,30]
[393360810,1762526698787,-1500.0,0.0003875,30]
[393360811,1762526698817,-1500.0,0.0003875,30]
[393360812,1762526698848,-603.48826267,0.0003875,120]
[393360813,1762526698883,-489740.12995039,0.00038755,30]
[393360814,1762526698916,-2382252.51439879,0.00038755,30]
[393360815,1762526698956,-1783982.98309728,0.00038755,30]
[393360816,1762526699168,705.81,0.00038834,120]
[393360817,1762526699223,705.81,0.00038834,120]
[393360818,1762526699277,705.81,0.00038834,120]
[393360819,1762526699319,705.81,0.00038834,120]
[393360820,1762526699362,705.81,0.00038834,120]
[393360821,1762526699410,705.81,0.00038834,120]
[393360822,1762526699460,705.81,0.00038834,120]
[393360823,1762526699559,705.81,0.00038834,120]
[393360824,1762526699611,705.81,0.00038834,120]
[393360825,1762526699655,705.81,0.00038834,120]
[393360826,1762526699710,705.81,0.00038834,120]
[393360827,1762526699755,705.81,0.00038834,120]
[393360828,1762526699805,706.02,0.00038834,120]
[393360829,1762526705385,-216.7,0.00028313,30]
[393360830,1762526705428,-216.7,0.00030417,30]
[393360831,1762526705473,-216.7,0.00032521,30]
[393360832,1762526705530,-216.7,0.00034625,30]
[393360833,1762526705571,-216.7,0.0003673,60]
[393360834,1762526705627,-500.0,0.0003783,30]
[393360835,1762526705664,-500.0,0.0003783,30]
[393360836,1762526705716,-598269.53130151,0.00038755,30]
[393360837,1762526705752,-447.11452841,0.00038755,30]
[393360838,1762526705788,-10000.0,0.00038757,30]
[393360839,1762526705824,-6035.0,0.00038757,30]
[393360840,1762526705863,-300.0,0.00038771,30]
[393360841,1762526705899,-500.0,0.00038774,30]
[393360842,1762526705941,-1381.88660826,0.00038775,30]
[393360843,1762526705975,-3151.14817034,0.00038775,30]
[393360844,1762526706009,-300.0,0.00038776,30]
[393360845,1762526706043,-1065.12680654,0.00038785,120]
[393360846,1762526706079,-800.0,0.00038792,30]
[393360847,1762526706114,-500.0,0.00038795,120]
[393360848,1762526706148,-503050.730283,0.000388,120]
[393360849,1762526706188,-500.0,0.00038807,30]
[393360850,1762526706223,-150.0,0.00038817,30]
[393360851,1762526706258,-500.0,0.0003883,30]
[393360852,1762526706293,-500.0,0.00038833,30]
[393360853,1762526706327,-268.91653274,0.00038833,92]
[393360854,1762526706376,-15625.15303168,0.00038834,30]
[393360855,1762526706408,-500.0,0.00038834,60]
[393360856,1762526706445,-500.0,0.00038834,30]
[393360857,1762526706480,-216.7,0.00038834,60]
[393360858,1762526706518,-800.0,0.00038838,30]
[393360859,1762526706554,-800.0,0.00038844,30]
[393360860,1762526706591,-2298342.20762042,0.00038858,30]
[393360861,1762526706628,-1553412.9851171,0.00038858,30]
[393360862,1762526709502,-744929.22250332,0.00038858,30]
[393360863,1762526709540,-2298342.20762042,0.00038858,30]
[393360864,1762526709579,-1956728.56987626,0.00038858,30]
[393360865,1762526713500,-341613.63774416,0.00038858,30]
[393360866,1762526713539,-2298342.20762042,0.00038858,30]
[393360867,1762526713574,-1847.1897,0.00038888,30]
[393360868,1762526713608,-150.05,0.00038896,30]
[393360869,1762526713642,-150.05,0.00038896,30]
[393360870,1762526713676,-500.0,0.00038898,30]
[393360871,1762526713712,-360.39762087,0.000389,120]
[393360872,1762526713743,-211.0,0.0003891,30]
[393360873,1762526713777,-800.0,0.00038914,30]
[393360874,1762526713812,-500.0,0.00038935,30]
[393360875,1762526713848,-500.0,0.00038943,30]
[393360876,1762526713883,-339.66945016,0.00038952,30]
[393360877,1762526713919,-500.0,0.00038978,30]
[393360878,1762526713953,-500.0,0.0003898,30]
[393360879,1762526713988,-800.0,0.00038985,30]
[393360880,1762526714020,-159.24238961,0.00039,30]
[393360881,1762526714052,-1261.76019858,0.00039,120]
[393360882,1762526714085,-7762.64389855,0.00039,120]
[393360883,1762526714117,-2001.55471042,0.00039,120]
[393360884,1762526714149,-2984.16,0.00039,30]
[393360885,1762526714180,-5000.0,0.00039,120]
[393360886,1762526714218,-722.9,0.00039007,30]
[393360887,1762526714250,-722.9,0.00039007,30]
[393360888,1762526714284,-500.0,0.00039013,30]
[393360889,1762526714318,-500.0,0.00039027,30]
[393360890,1762526714352,-572.04319752,0.00039061,30]
[393360891,1762526714386,-500.0,0.00039064,30]
[393360892,1762526714421,-500.0,0.00039072,30]
[393360893,1762526714458,-800.0,0.00039082,30]
[393360894,1762526714493,-505.08800945,0.00039085,30]
[393360895,1762526714528,-500.0,0.00039176,30]
[393360896,1762526714564,-2254.0,0.00039178,30]
[393360897,1762526714599,-645.667099,0.00039216,30]
[393360898,1762526714634,-500.0,0.00039228,30]
[393360899,1762526714669,-500.0,0.00039269,30]
[393360900,1762526714704,-511.39595273,0.00039272,30]
[393360901,1762526714738,-500.0,0.00039272,30]
[393360902,1762526714773,-722.9,0.00039281,30]
[393360903,1762526714807,-722.9,0.00039281,30]
[393360904,1762526714845,-500.0,0.00039348,30]
[393360905,1762526714883,-2000.0,0.00039356,120]
[393360906,1762526714918,-500.0,0.00039408,30]
[393360907,1762526714953,-500.0,0.00039415,30]
[393360908,1762526714989,-525.56633484,0.0003945,30]
[393360909,1762526715023,-500.0,0.00039451,30]
[393360910,1762526715056,-500.0,0.00039457,30]
[393360911,1762526715088,-185.0557086,0.000395,120]
[393360912,1762526715121,-170.04807058,0.000395,120]
[393360913,1762526715153,-269.22624179,0.000395,120]
[393360914,1762526715190,-1775.3547109,0.000395,120]
[393360915,1762526715223,-203.12782018,0.000395,120]
[393360916,1762526715256,-722.9,0.00039555,30]
[393360917,1762526715289,-722.9,0.00039555,30]
[393360918,1762526715324,-500.0,0.00039571,30]
[393360919,1762526715359,-500.0,0.00039573,30]
[393360920,1762526715393,-500.0,0.00039574,30]
[393360921,1762526715426,-500.0,0.00039606,30]
[393360922,1762526715467,-860.81042361,0.00039675,30]
[393360923,1762526715502,-2211.41178262,0.00039676,30]
[393360924,1762526715535,-673.58009064,0.00039708,30]
[393360925,1762526715570,-610.0,0.00039726,30]
[393360926,1762526715604,-400.0,0.00039753,30]
[393360927,1762526715639,-400.0,0.00039753,30]
[393360928,1762526715672,-400.0,0.00039753,30]
[393360929,1762526715712,-400.0,0.00039753,30]
[393360930,1762526715746,-400.0,0.00039753,30]
[393360931,1762526715780,-400.0,0.00039753,30]
[393360932,1762526715812,-400.0,0.00039753,30]
[393360933,1762526715846,-400.0,0.00039753,30]
[393360934,1762526715879,-400.0,0.00039753,30]
[393360935,1762526715916,-400.0,0.00039753,30]
[393360936,1762526715949,-400.0,0.00039753,30]
[393360937,1762526715980,-400.0,0.00039753,30]
[393360938,1762526716011,-346.38960639,0.00039753,30]
[393360939,1762526716044,-151.0,0.000398,120]
[393360940,1762526716077,-1112.15433829,0.00039828,30]
[393360941,1762526716110,-722.9,0.00039829,30]
[393360942,1762526716142,-722.9,0.00039829,30]
[393360943,1762526716175,-627.80230955,0.00039832,30]
[393360944,1762526716213,-817.86864893,0.00039852,30]
[393360945,1762526716247,-150.0,0.00039876,120]
[393360946,1762526716283,-500.0,0.00039948,30]
[393360947,1762526716318,-380.0,0.00039962,90]
[393360948,1762526716353,-2000.0,0.00039981,120]
[393360949,1762526716389,-851.06947651,0.00039995,30]
[393360950,1762526716423,-1550.07818469,0.0004,120]
[393360951,1762526716463,-426.75523142,0.0004,120]
[393360952,1762526716497,-500.0,0.0004,120]
[393360953,1762526716530,-200.0,0.0004,60]
[393360954,1762526716564,-934.51235948,0.0004,30]
[393360955,1762526716599,-205.89238166,0.0004,30]
[393360956,1762526716631,-153.42443002,0.0004,120]
[393360957,1762526716664,-400.0,0.0004,120]
[393360958,1762526716699,-151.0,0.0004,30]
[393360959,1762526716731,-8991.92755317,0.0004,120]
[393360960,1762526716764,-150.0,0.0004,45]
[393360961,1762526716796,-10000.0,0.0004,30]
[393360962,1762526716828,-11915.0,0.0004,120]
[393360963,1762526717023,-548.77638182,0.0004,120]
[393360964,1762526717057,-19609.75175528,0.0004,30]
[393360965,1762526717090,-50000.0,0.0004,120]
[393360966,1762526717123,-5000.0,0.0004,120]
[393360967,1762526717160,-1168.58,0.0004,120]
[393360968,1762526717196,-403.43,0.0004,120]
[393360969,1762526717229,-379.19,0.0004,120]
[393360970,1762526717263,-1089.54,0.0004,120]
[393360971,1762526717297,-3561.65,0.0004,120]
[393360972,1762526717331,-264.77,0.0004,120]
[393360973,1762526717365,-3191.28,0.0004,120]
[393360974,1762526717400,-904.36053123,0.0004,120]
[393360975,1762526717434,-8276.71,0.0004,120]
[393360976,1762526717474,-15000.0,0.0004,120]
[393360977,1762526717508,-7563.89,0.0004,120]
[393360978,1762526717542,-542.67,0.0004,120]
[393360979,1762526717576,-178.56,0.0004,120]
[393360980,1762526717608,-528.33,0.0004,120]
[393360981,1762526717640,-231.84,0.0004,120]
[393360982,1762526717673,-500.0,0.00040063,120]
[393360983,1762526717707,-722.9,0.00040103,30]
[393360984,1762526717740,-722.9,0.00040103,30]
[393360985,1762526717774,-150.0,0.000403,120]
[393360986,1762526717807,-1142.16,0.000403,120]
[393360987,1762526717841,-150.0,0.00040318,120]
[393360988,1762526717875,-722.9,0.00040377,30]
[393360989,1762526717907,-722.9,0.00040377,30]
[393360990,1762526717942,-203.79986203,0.00040379,120]
[393360991,1762526717972,-274.96,0.0004039,57]
[393360992,1762526718003,-5821.734,0.0004039,57]
[393360993,1762526718036,-170.04807058,0.000406,120]
[393360994,1762526718068,-269.22624179,0.000406,120]
[393360995,1762526718101,-1775.3547109,0.000406,120]
[393360996,1762526718134,-2000.0,0.00040607,120]
[393360997,1762526718166,-722.9,0.00040651,30]
[393360998,1762526718199,-722.9,0.00040651,30]
[393360999,1762526718232,-1327.01719834,0.00040658,120]
[393361000,1762526718267,-722.9,0.00040925,30]
[393361001,1762526718302,-722.9,0.00040925,30]
[393361002,1762526718340,-211.0,0.0004093,30]
[393361003,1762526718379,-746.1,0.00041,120]
[393361004,1762526718417,-10000.0,0.00041,30]
[393361005,1762526718457,-5000.0,0.00041,120]
[393361006,1762526718497,-999.0,0.00041095,120]
[393361007,1762526718532,-50000.0,0.00041096,120]
[393361008,1762526718567,-327.38,0.00041096,120]
[393361009,1762526718603,-194.35456018,0.00041119,30]
[393361010,1762526718636,-150.0,0.00041168,30]
[393361011,1762526718670,-150.0,0.00041181,30]
[393361012,1762526718702,-722.9,0.00041199,30]
[393361013,1762526718734,-722.9,0.00041199,30]
[393361014,1762526718766,-2000.0,0.00041232,120]
[393361015,1762526718798,-150.0,0.00041248,30]
[393361016,1762526718830,-150.0,0.00041255,30]
[393361017,1762526718866,-150.0,0.00041262,30]
[393361018,1762526718900,-194.35456018,0.00041272,30]
[393361019,1762526718936,-500.0,0.000413,60]
[393361020,1762526718979,-150.0,0.00041349,30]
[393361021,1762526719018,-150.0,0.00041349,30]
[393361022,1762526719055,-150.0,0.00041362,30]
[393361023,1762526719091,-500.0,0.00041397,120]
[393361024,1762526719128,-200.0,0.000414,120]
[393361025,1762526719167,-194.35456018,0.00041426,30]
[393361026,1762526719203,-150.0,0.00041436,30]
[393361027,1762526719238,-150.0,0.00041443,30]
[393361028,1762526719276,-150.0,0.00041459,30]
[393361029,1762526719312,-150.0,0.00041498,30]
[393361030,1762526719349,-5000.0,0.000415,120]
[393361031,1762526719384,-150.0,0.0004153,30]
[393361032,1762526719420,-150.0,0.00041542,30]
[393361033,1762526719455,-194.35456018,0.00041579,30]
[393361034,1762526719492,-150.0,0.00041579,30]
[393361035,1762526719528,-150.0,0.00041611,30]
[393361036,1762526719563,-150.0,0.0004163,30]
[393361037,1762526719597,-150.0,0.00041711,30]
[393361038,1762526719631,-150.0,0.00041711,30]
[393361039,1762526719666,-150.0,0.00041723,30]
[393361040,1762526719700,-194.35456018,0.00041733,30]
[393361041,1762526719736,-150.0,0.00041785,30]
[393361042,1762526719770,-150.0,0.00041818,30]
[393361043,1762526719806,-500.0,0.00041848,60]
[393361044,1762526719847,-150.0,0.00041855,30]
[393361045,1762526719884,-2000.0,0.00041858,120]
[393361046,1762526719918,-194.35456018,0.00041886,30]
[393361047,1762526719953,-150.0,0.00041891,30]
[393361048,1762526719989,-170.04807058,0.000419,120]
[393361049,1762526720026,-269.22624179,0.000419,120]
[393361050,1762526720060,-1775.3547109,0.000419,120]
[393361051,1762526720096,-150.0,0.00041903,30]